Workbook

Sheet Directions
A3: Directions for Using the BIG 5 Graphics Generator
A4: This Big 5 Generator has been developed to assist your team to display your data in easy to read graphics, that you can then use to problem solve and develop targeted interventions. To prepare to enter your data, simply tally your ODR's by numbers per month, type of behaviors, location, time of day, and number of referrals per students (count the number with 1 referral, 2-5 referrals, and 6 or more referrals).
A5: Step 1- When entering data for a given month, first open the Big-5 Generator for the previous month, and immediately save it, using the name of the school, and the current month and year in the title. An example is "Wonderful_Elementary_March_2008." By always starting with the previous month, it will save you from having to retype the accumulating data each month.
A6: Step 2- Type your school name, the month and school year, as well as the student enrollments for the current year as well as the previous 2 years into the appropriate spaces on the "School Set Up" worksheet. This will propogate to title fields on the print worksheets of the Big 5 Generator, saving you this step. CLICK SAVE!!!
A7: Step 3- Collect and enter the required data for the appropriate worksheet:
A8: A) Per Day Worksheet- enter the number of student attendance days for each month and the total number of Office Discipline Referrals (ODRs) or instances where students were removed from academic instruction in order to have the misbehavior discussed and/or consequence given. CLICK SAVE!!!
A9: B) Behavior Worksheet – enter the total number of ODRs for the month according to the inappropriate behavior listed on the ODR. CLICK SAVE!!!
A10: C) Location Worksheet – enter the total number of ODRs for the month by the location where the behavior occurred. CLICK SAVE!!!
A11: D) Time Worksheet – enter the total number of ODRs for the month by the time of day in which the behavior occurred. Record these times to the nearest 15 minute increment to the time listed on the ODR. CLICK SAVE!!!
A12: E) By Student Worksheet – this graphic allows you to compare the number of students that might require more intensive interventions, and compare this to a national data set. Click on the wrksheet tab that best describes the configuration of your school (k-6; 6-9; 9-12; k-8 or k-12). The number enrolled will automatically fill in from when you entered it on the "School Set Up" worksheet. If it is incorrect, you must change it from the "School Set Up" worksheet. Enter the total number students who have had 1 ODR for the month, the total number of students with 2-5 ODRs for the month, and the total number of students with 6+ ODRs for the month. Be sure to enter your data for the current school year, or the generator will not produce a triangle graph!!! The Big 5 Generator will automatically calculate the number of students who have 0 ODR's for the month. You may also enter data for the previous two school years. This will produce a graph labeled "The Trail of Tiers" that shows you trends in the percentage of your students at each of the three tiers, over a three year period. If you choose "print", only the school name and triangle graph will print. You may also selct the cells around the graph, copy and paste to power point or word. CLICK SAVE!!!
A13: Step 3- Select the "Print Monthly," "Print Cumulative" worksheets from the far right hand tabs at the bottom of your screen (you may have to keep clicking the tabs at the bottom of the screen until the print screens are visible, or you can click on the : in the lower left hand corner). Use your print command to print the desired graphics page. You may also select these graphs, copy, and paste to power point or word.

Sheet Main
B3: Main Menu
B5: Main | D5: Data Entry | F5: Triangle Pages | H5: Graphs | J5: Tables
F6: Choose your school's configuration

Sheet School Set Up
C15: School Name: | E15: Dent-Phelps R-3
A17: Month/ Year: | C17: August | H17: / | I17: 2011
C18: Type Month or "Cumulative"
A21: Number of Students Enrolled 2011/2012 | F21: 283
A23: Number of Students Enrolled 2010/2011 | F23: 306
A25: Number of Students Enrolled 2009/2010 | F25: 297

Sheet Per Day
A4: Per Day Per Month Rate
A5: 1. Enter Number of days for each month that students attend school. Include any early release as a day only if you count it as a student attendance "day".
A6: 2. Enter total number of major referrals only for that month. Major referrals are any time a student leaves academic instruction for a disciplinary reason regardless of time spent out of the instructional setting.
A8: 3. A per day rate should be calculated for each month and automatically will display in the third column for each year entered. This data will also automatically be entered into two more tables and associated graphs, below.
B10: 2009/2010 | E10: 2010/2011 | H10: 2011/2012
B11: Days of Student Attendance | C11: Major Referrals for that Month | D11: Per Day Rate | E11: Days of Student Attendance | F11: Major Referrals for that Month | G11: Per Day Rate | H11: Days of Student Attendance | I11: Major Referrals for that Month | J11: Per Day Rate
A12: August | D12: =SUM(C12/B12) ->  | G12: =SUM(F12/E12) ->  | H12: 11 | I12: 1 | J12: =SUM(I12/H12) -> 0.09090909091
A13: September | D13: =SUM(C13/B13) ->  | G13: =SUM(F13/E13) ->  | H13: 21 | I13: 9 | J13: =SUM(I13/H13) -> 0.4285714286
A14: October | D14: =SUM(C14/B14) ->  | H14: 19 | I14: 20 | J14: 1.052631579
A15: November | H15: 18 | I15: 12 | J15: 0.6666666667
A16: December | H16: 15 | I16: 12 | J16: 0.8
A17: January | D17: =SUM(C17/B17) ->  | H17: 21 | I17: 9 | J17: 0.4285714286
A18: February | H18: 19 | I18: 7 | J18: 0.3684210526
A19: March | H19: 19 | I19: 8 | J19: 0.4210526316
A20: April
A21: May
A22: June
A23: July
B25: Per Day Rate | C25: Per Day Rate | D25: Per Day Rate
B26: 2009/2010 | C26: 2010/2011 | D26: 2011/2012
A27: August | B27: =SUM(D12) ->  | C27: =SUM(G12) ->  | D27: =SUM(J12) -> 0.09090909091
A28: September | B28: =SUM(D13) ->  | C28: =SUM(G13) ->  | D28: =SUM(J13) -> 0.4285714286
A29: October | B29: =SUM(D14) ->  | C29: =SUM(G14) ->  | D29: 1.052631579
A30: November | D30: 0.6666666667
A31: December | D31: 0.8
A32: January | D32: 0.4285714286
A33: February | D33: 0.3684210526
A34: March | D34: =SUM(J19) -> 0.4210526316
A35: April
A36: May
A37: June
A38: July
B40: Per Day Rate
B41: 2011/2012
A42: August | B42: =J12 -> 0.09090909091
A43: September | B43: =J13 -> 0.4285714286
A44: October | B44: 1.052631579
A45: November | B45: 0.6666666667
A46: December | B46: 0.8
A47: January | B47: 0.4285714286
A48: February | B48: 0.3684210526
A49: March | B49: 0.4210526316
A50: April
A51: May
A52: June
A53: July

Sheet Behavior
A4: Problem Behaviors
A5: 1. Enter the number of major referrals for each month by behavior for each month in Table 1A [place a "0" if there are none]
A6: 2. This will generate a cumulative yearlong table. Cumulative data will automatically propogate the fields in Table 1C, below.
A7: 3. Table 1B allows you to generate a graphic for just one month. After entering data into the first table, select the cells in the column that contain the data you entered for the month you wish to graph, copy (right click, "copy"). Then click on the first empty box in the yellow column on Table 1B, and paste (right click, "paste") into the yellow column.
A8: 4. Table 1C is propogated when you add your data into Table 1A and Table 1B. This will generate a graph that compares the current month to the cumulative data.
A11: TABLE 1A
B12: August | C12: September | D12: October | E12: November | F12: December | G12: January | H12: February | I12: March | J12: April | K12: May | L12: June | M12: July | N12: ='School Set Up'!I17 -> 2011 | Q12: =N12 -> 2011
A13: Inappro. Lang | B13: 0 | C13: 0 | D13: 1 | E13: 1 | F13: 3 | G13: 0 | H13: 0 | I13: 0 | J13: 0 | K13: 0 | L13: 0 | M13: 0 | N13: =SUM(B13:M13) -> 5 | P13: Inappro. Lang | Q13: =SUM(N13) -> 5
A14: Aggression/Fight | B14: 0 | C14: 0 | D14: 4 | E14: 7 | F14: 2 | G14: 0 | H14: 4 | I14: 3 | J14: 1 | K14: 2 | L14: 0 | M14: 0 | N14: =SUM(B14:M14) -> 23 | P14: Aggression/Fight | Q14: =SUM(N14) -> 23
A15: Disrespect | B15: 0 | C15: 0 | D15: 0 | E15: 2 | F15: 2 | G15: 0 | H15: 1 | I15: 0 | J15: 0 | K15: 0 | L15: 0 | M15: 0 | N15: 5 | P15: Disrespect | Q15: 5
A16: Lying | B16: 0 | C16: 0 | D16: 0 | E16: 0 | F16: 1 | G16: 0 | H16: 0 | I16: 0 | J16: 0 | K16: 0 | L16: 0 | M16: 0 | N16: 1 | P16: Lying | Q16: 1
A17: Harrass | B17: 0 | C17: 0 | D17: 1 | E17: 0 | F17: 2 | G17: 0 | H17: 1 | I17: 0 | J17: 0 | K17: 0 | L17: 0 | M17: 0 | N17: 4 | P17: Harrass | Q17: 4
A18: Disruption | B18: 0 | C18: 0 | D18: 1 | E18: 5 | F18: 2 | G18: 0 | H18: 1 | I18: 1 | J18: 0 | K18: 1 | L18: 0 | M18: 0 | N18: 11 | P18: Disruption | Q18: 11
A19: Tardy | B19: 0 | C19: 0 | D19: 0 | E19: 0 | F19: 0 | G19: 0 | H19: 0 | I19: 0 | J19: 0 | K19: 0 | L19: 0 | M19: 0 | N19: 0 | P19: Tardy | Q19: 0
A20: Skip | B20: 0 | C20: 0 | D20: 0 | E20: 0 | F20: 0 | G20: 0 | H20: 0 | I20: 0 | J20: 0 | K20: 0 | L20: 0 | M20: 0 | N20: 0 | P20: Skip | Q20: 0
A21: Prop Damage | B21: 0 | C21: 0 | D21: 1 | E21: 0 | F21: 0 | G21: 0 | H21: 1 | I21: 1 | J21: 0 | K21: 0 | L21: 0 | M21: 0 | N21: 3 | P21: Prop Damage | Q21: 3
A22: Forgery/Theft | B22: 0 | C22: 0 | D22: 0 | E22: 0 | F22: 0 | G22: 0 | H22: 0 | I22: 2 | J22: 0 | K22: 0 | L22: 0 | M22: 0 | N22: 2 | P22: Forgery/Theft | Q22: 2
A23: Dress | B23: 0 | C23: 0 | D23: 0 | E23: 0 | F23: 0 | G23: 0 | H23: 0 | I23: 0 | J23: 0 | K23: 0 | L23: 0 | M23: 0 | N23: 0 | P23: Dress | Q23: 0
A24: Tech | B24: 0 | C24: 0 | D24: 0 | E24: 0 | F24: 0 | G24: 0 | H24: 0 | I24: 0 | J24: 0 | K24: 0 | L24: 0 | M24: 0 | N24: 0 | P24: Tech | Q24: 0
A25: Innapro. Affect. | B25: 0 | C25: 0 | D25: 0 | E25: 0 | F25: 0 | G25: 0 | H25: 0 | I25: 2 | J25: 0 | K25: 0 | L25: 0 | M25: 0 | N25: 2 | P25: Innapro. Affect. | Q25: 2
A26: Out Bounds | B26: 0 | C26: 0 | D26: 0 | E26: 0 | F26: 0 | G26: 0 | H26: 0 | I26: 0 | J26: 0 | K26: 0 | L26: 0 | M26: 0 | N26: 0 | P26: Out Bounds | Q26: 0
A27: Gang Display | B27: 0 | C27: 0 | D27: 0 | E27: 0 | F27: 0 | G27: 0 | H27: 0 | I27: 0 | J27: 0 | K27: 0 | L27: 0 | M27: 0 | N27: 0 | P27: Gang Display | Q27: 0
A28: Tobacco | B28: 0 | C28: 0 | D28: 0 | E28: 0 | F28: 0 | G28: 0 | H28: 0 | I28: 0 | J28: 0 | K28: 0 | L28: 0 | M28: 0 | N28: 0 | P28: Tobacco | Q28: 0
A29: Alcohol | B29: 0 | C29: 0 | D29: 0 | E29: 0 | F29: 0 | G29: 0 | H29: 0 | I29: 0 | J29: 0 | K29: 0 | L29: 0 | M29: 0 | N29: 0 | P29: Alcohol | Q29: 0
A30: Drugs | B30: 0 | C30: 0 | D30: 0 | E30: 0 | F30: 0 | G30: 0 | H30: 0 | I30: 0 | J30: 0 | K30: 0 | L30: 0 | M30: 0 | N30: 0 | P30: Drugs | Q30: 0
A31: Combust | B31: 0 | C31: 0 | D31: 0 | E31: 0 | F31: 0 | G31: 0 | H31: 0 | I31: 0 | J31: 0 | K31: 0 | L31: 0 | M31: 0 | N31: 0 | P31: Combust | Q31: 0
A32: Bomb | B32: 0 | C32: 0 | D32: 0 | E32: 0 | F32: 0 | G32: 0 | H32: 0 | I32: 0 | J32: 0 | K32: 0 | L32: 0 | M32: 0 | N32: 0 | P32: Bomb | Q32: 0
A33: Arson | B33: 0 | C33: 0 | D33: 0 | E33: 0 | F33: 0 | G33: 0 | H33: 0 | I33: 0 | J33: 0 | K33: 1 | L33: 0 | M33: 0 | N33: 1 | P33: Arson | Q33: 1
A34: Weapons | B34: 0 | C34: 0 | D34: 0 | E34: 0 | F34: 0 | G34: 0 | H34: 0 | I34: 0 | J34: 0 | K34: 0 | L34: 0 | M34: 0 | N34: 0 | P34: Weapons | Q34: 0
A35: Other | B35: 0 | C35: 0 | D35: 0 | E35: 0 | F35: 0 | G35: 0 | H35: 0 | I35: 0 | J35: 0 | K35: 1 | L35: 0 | M35: 0 | N35: 1 | P35: Other | Q35: 1
A36: Unknown | B36: 0 | C36: 0 | D36: 2 | E36: 0 | F36: 0 | G36: 0 | H36: 0 | I36: 0 | J36: 0 | K36: 0 | L36: 0 | M36: 0 | N36: 2 | P36: Unknown | Q36: 2
A38: ='School Set Up'!E15 -> Dent-Phelps R-3
A39: TABLE 1B
A40: Inappro. Lang | B40: 1 | N40: ='School Set Up'!C17 -> August | O40: ='School Set Up'!I17 -> 2011
A41: Aggression/Fight | B41: 4
A42: Disrespect | B42: 0
A43: Lying | B43: 0 | F43: .
A44: Harrass | B44: 1
A45: Disruption | B45: 1
A46: Tardy | B46: 0
A47: Skip | B47: 0
A48: Prop Damage | B48: 1
A49: Forgery/Theft | B49: 0
A50: Dress | B50: 0
A51: Tech | B51: 0
A52: Innapro. Affect. | B52: 0
A53: Out Bounds | B53: 0
A54: Gang Display | B54: 0
A55: Tobacco | B55: 0
A56: Alcohol | B56: 0
A57: Drugs | B57: 0
A58: Combust | B58: 0
A59: Bomb | B59: 0
A60: Arson | B60: 0
A61: Weapons | B61: 0
A62: Other | B62: 0
A63: Unknown | B63: 2
A68: TABLE 1C | B68: MONTH?! | C68: =N12 -> 2011
A69: Inappro. Lang | B69: =B40 -> 1 | C69: =SUM(Q13) -> 5
A70: Aggression/Fight | B70: =B41 -> 4 | C70: =SUM(Q14) -> 23
A71: Disrespect | B71: 0 | C71: =SUM(Q15) -> 5
A72: Lying | B72: 0 | C72: 1
A73: Harrass | B73: 1 | C73: 4
A74: Disruption | B74: 1 | C74: 11
A75: Tardy | B75: 0 | C75: 0
A76: Skip | B76: 0 | C76: 0
A77: Prop Damage | B77: 1 | C77: 3
A78: Forgery/Theft | B78: 0 | C78: 2
A79: Dress | B79: 0 | C79: 0
A80: Tech | B80: 0 | C80: 0
A81: Innapro. Affect. | B81: 0 | C81: 2
A82: Out Bounds | B82: 0 | C82: 0
A83: Gang Display | B83: 0 | C83: 0
A84: Tobacco | B84: 0 | C84: 0
A85: Alcohol | B85: 0 | C85: 0
A86: Drugs | B86: 0 | C86: 0
A87: Combust | B87: 0 | C87: 0
A88: Bomb | B88: 0 | C88: 0
A89: Arson | B89: 0 | C89: 1
A90: Weapons | B90: 0 | C90: 0
A91: Other | B91: 0 | C91: 1
A92: Unknown | B92: 2 | C92: 2

Sheet Location
A4: Problem Locations
A5: 1. Enter data totals for each month in corresponding location category, in Table 2A [place a "0" if there are none]
A6: 2. This will generate a yearlong table.
A7: 3. Table 2B allows you to generate a graphic for just one month. After entering data into the Table 2A, select the column for the month you wish to graph, then copy (right click, "copy"). Click on the first cell in the yellow column in Table 2B, and paste (right click, "paste") into the yellow column.
A8: 4. Table 2C generates a graph that compares the monthly referrals per location with the year to date data. Table 2C will automatically propogate itself when you enter data into Table 2A and Table 2B
A12: Table 2A | D12: ='School Set Up'!C17 -> August | L12: ='School Set Up'!I17 -> 2011
B13: August | C13: September | D13: October | E13: November | F13: December | G13: January | H13: February | I13: March | J13: April | K13: May | L13: June | M13: July | N13: ='School Set Up'!I17 -> 2011 | Q13: Cumulative Level
A14: Classroom | B14: 0 | C14: 0 | D14: 5 | E14: 5 | F14: 5 | G14: 3 | H14: 1 | I14: 1 | J14: 1 | K14: 2 | L14: 0 | M14: 0 | N14: =SUM(B14:M14) -> 23 | P14: Classroom | Q14: =SUM(N14) -> 23
A15: Playground | B15: 0 | C15: 0 | D15: 1 | E15: 3 | F15: 1 | G15: 1 | H15: 1 | I15: 4 | J15: 0 | K15: 3 | L15: 0 | M15: 0 | N15: =SUM(B15:M15) -> 14 | P15: Playground | Q15: =SUM(N15) -> 14
A16: Commons | B16: 0 | C16: 0 | D16: 0 | E16: 0 | F16: 0 | G16: 0 | H16: 0 | I16: 0 | J16: 0 | K16: 0 | L16: 0 | M16: 0 | N16: 0 | P16: Commons | Q16: 0
A17: Hall/Breezeway | B17: 0 | C17: 0 | D17: 0 | E17: 3 | F17: 2 | G17: 1 | H17: 0 | I17: 1 | J17: 0 | K17: 0 | L17: 0 | M17: 0 | N17: 7 | P17: Hall/Breezeway | Q17: 7
A18: Cafeteria | B18: 0 | C18: 0 | D18: 0 | E18: 0 | F18: 0 | G18: 0 | H18: 2 | I18: 0 | J18: 0 | K18: 0 | L18: 0 | M18: 0 | N18: 2 | P18: Cafeteria | Q18: 2
A19: Bath/Restroom | B19: 0 | C19: 0 | D19: 0 | E19: 0 | F19: 0 | G19: 0 | H19: 1 | I19: 0 | J19: 0 | K19: 0 | L19: 0 | M19: 0 | N19: 1 | P19: Bath/Restroom | Q19: 1
A20: Gym | B20: 0 | C20: 0 | D20: 0 | E20: 0 | F20: 2 | G20: 1 | H20: 0 | I20: 0 | J20: 0 | K20: 0 | L20: 0 | M20: 0 | N20: 3 | P20: Gym | Q20: 3
A21: Library | B21: 0 | C21: 0 | D21: 0 | E21: 1 | F21: 1 | G21: 0 | H21: 1 | I21: 0 | J21: 0 | K21: 0 | L21: 0 | M21: 0 | N21: 3 | P21: Library | Q21: 3
A22: Bus Loading | B22: 0 | C22: 0 | D22: 0 | E22: 0 | F22: 0 | G22: 0 | H22: 0 | I22: 0 | J22: 0 | K22: 0 | L22: 0 | M22: 0 | N22: 0 | P22: Bus Loading | Q22: 0
A23: Parking Lot | B23: 0 | C23: 0 | D23: 0 | E23: 0 | F23: 0 | G23: 0 | H23: 0 | I23: 0 | J23: 0 | K23: 0 | L23: 0 | M23: 0 | N23: 0 | P23: Parking Lot | Q23: 0
A24: Bus | B24: 0 | C24: 0 | D24: 4 | E24: 1 | F24: 0 | G24: 3 | H24: 1 | I24: 2 | J24: 0 | K24: 1 | L24: 0 | M24: 0 | N24: 12 | P24: Bus | Q24: 12
A25: Special Event | B25: 0 | C25: 0 | D25: 0 | E25: 0 | F25: 0 | G25: 0 | H25: 0 | I25: 0 | J25: 0 | K25: 0 | L25: 0 | M25: 0 | N25: 0 | P25: Special Event | Q25: 0
A26: Off-Campus | B26: 0 | C26: 0 | D26: 0 | E26: 0 | F26: 0 | G26: 0 | H26: 0 | I26: 0 | J26: 0 | K26: 0 | L26: 0 | M26: 0 | N26: 0 | P26: Off-Campus | Q26: 0
A27: Stadium | B27: 0 | C27: 0 | D27: 0 | E27: 0 | F27: 0 | G27: 0 | H27: 0 | I27: 0 | J27: 0 | K27: 0 | L27: 0 | M27: 0 | N27: 0 | P27: Stadium | Q27: 0
A28: Office | B28: 0 | C28: 0 | D28: 0 | E28: 0 | F28: 0 | G28: 0 | H28: 0 | I28: 0 | J28: 0 | K28: 0 | L28: 0 | M28: 0 | N28: 0 | P28: Office | Q28: 0
A29: Locker Room | B29: 0 | C29: 0 | D29: 0 | E29: 0 | F29: 0 | G29: 0 | H29: 0 | I29: 0 | J29: 0 | K29: 0 | L29: 0 | M29: 0 | N29: 0 | P29: Locker Room | Q29: 0
A30: Other Location | B30: 0 | C30: 0 | D30: 0 | E30: 0 | F30: 1 | G30: 0 | H30: 0 | I30: 0 | J30: 0 | K30: 0 | L30: 0 | M30: 0 | N30: 1 | P30: Other Location | Q30: 1
A31: Unknown Location | B31: 0 | C31: 0 | D31: 0 | E31: 0 | F31: 0 | G31: 0 | H31: 0 | I31: 0 | J31: 0 | K31: 0 | L31: 0 | M31: 0 | N31: 0 | P31: Unknown Location | Q31: 0
A33: Table 2B | J33: =D12 -> August | M33: =L12 -> 2011
B34: ='School Set Up'!C17 -> August
A35: Classroom
A36: Playground
A37: Commons
A38: Hall/Breezeway
A39: Cafeteria
A40: Bath/Restroom
A41: Gym
A42: Library
A43: Bus Loading
A44: Parking Lot
A45: Bus
A46: Special Event
A47: Off-Campus
A48: Stadium
A49: Office
A50: Locker Room
A51: Other Location
A52: Unknown Location
A56: Table 2C | K56: =D12 -> August | N56: =L12 -> 2011
B57: =D12 -> August | C57: =L12 -> 2011
A58: Classroom | B58: =B35 -> 0 | C58: =SUM(Q14) -> 23
A59: Playground | B59: =B36 -> 0 | C59: =SUM(Q15) -> 14
A60: Commons | B60: 0 | C60: 0
A61: Hall/Breezeway | B61: 0 | C61: 7
A62: Cafeteria | B62: 0 | C62: 2
A63: Bath/Restroom | B63: 0 | C63: 1
A64: Gym | B64: 0 | C64: 3
A65: Library | B65: 0 | C65: 3
A66: Bus Loading | B66: 0 | C66: 0
A67: Parking Lot | B67: 0 | C67: 0
A68: Bus | B68: 0 | C68: 12
A69: Special Event | B69: 0 | C69: 0
A70: Off-Campus | B70: 0 | C70: 0
A71: Stadium | B71: 0 | C71: 0
A72: Office | B72: 0 | C72: 0
A73: Locker Room | B73: 0 | C73: 0
A74: Other Location | B74: 0 | C74: 1
A75: Unknown Location | B75: 0 | C75: 0

Sheet Time
A4: Problem Times
A5: 1. Enter number of ODR's by time of day for each month in corresponding TIME category in Table 3A, [place a "0" if there are none]
A6: 2. This will generate a yearlong table.
A7: 3. Table 3B allows you to generate a graphic for just one month. After entering data into the first table, select the column for the month you wish to graph, and copy (right click, "copy"). Click in the first box in the yellow column of Table 3B and paste (right click, "paste") data into the yellow column.
A8: 4. Table 3C (bottom of page) compares the current month with cumulative data by time of day. The cells on this table automatically propogate when you enter data into Table 3A and Table 3B. SAVE!!!
A10: Table 3A
B11: August | C11: September | D11: October | E11: November | F11: December | G11: January | H11: February | I11: March | J11: April | K11: May | L11: June | M11: July | N11: ='School Set Up'!I17 -> 2011 | Q11: =N11 -> 2011
A12: 07:00:00 | B12: 0 | C12: 0 | D12: 0 | E12: 0 | F12: 0 | G12: 0 | H12: 0 | I12: 2 | J12: 0 | K12: 0 | L12: 0 | M12: 0 | N12: =SUM(B12:M12) -> 2 | P12: 07:00:00 | Q12: =SUM(N12) -> 2
A13: 07:15:00 | B13: 0 | C13: 0 | D13: 0 | E13: 0 | F13: 0 | G13: 1 | H13: 0 | I13: 0 | J13: 0 | K13: 0 | L13: 0 | M13: 0 | N13: =SUM(B13:M13) -> 1 | P13: 07:15:00 | Q13: =SUM(N13) -> 1
A14: 07:30:00 | B14: 0 | C14: 0 | E14: 0 | F14: 0 | H14: 0 | I14: 0 | J14: 0 | K14: 0 | L14: 0 | M14: 0 | N14: 0 | P14: 07:30:00 | Q14: 0
A15: 07:45:00 | B15: 0 | C15: 0 | D15: 1 | E15: 0 | F15: 1 | G15: 0 | H15: 0 | I15: 0 | J15: 0 | K15: 0 | L15: 0 | M15: 0 | N15: 2 | P15: 07:45:00 | Q15: 2
A16: 08:00:00 | B16: 0 | C16: 0 | D16: 0 | E16: 1 | F16: 2 | G16: 0 | H16: 0 | I16: 0 | J16: 0 | K16: 0 | L16: 0 | M16: 0 | N16: 3 | P16: 08:00:00 | Q16: 3
A17: 08:15:00 | B17: 0 | C17: 0 | D17: 0 | E17: 0 | F17: 0 | G17: 0 | H17: 0 | I17: 0 | J17: 0 | K17: 0 | L17: 0 | M17: 0 | N17: 0 | P17: 08:15:00 | Q17: 0
A18: 08:30:00 | B18: 0 | C18: 0 | D18: 0 | E18: 0 | F18: 0 | G18: 0 | H18: 0 | I18: 0 | J18: 0 | K18: 0 | L18: 0 | M18: 0 | N18: 0 | P18: 08:30:00 | Q18: 0
A19: 08:45:00 | B19: 0 | C19: 0 | D19: 0 | E19: 0 | F19: 0 | G19: 0 | H19: 0 | I19: 0 | J19: 0 | K19: 0 | L19: 0 | M19: 0 | N19: 0 | P19: 08:45:00 | Q19: 0
A20: 09:00:00 | B20: 0 | C20: 0 | D20: 0 | E20: 0 | F20: 0 | G20: 0 | H20: 0 | I20: 0 | J20: 0 | K20: 0 | L20: 0 | M20: 0 | N20: 0 | P20: 09:00:00 | Q20: 0
A21: 09:15:00 | B21: 0 | C21: 0 | D21: 0 | E21: 1 | F21: 0 | G21: 1 | H21: 0 | I21: 0 | J21: 0 | K21: 0 | L21: 0 | M21: 0 | N21: 2 | P21: 09:15:00 | Q21: 2
A22: 09:30:00 | B22: 0 | C22: 0 | D22: 0 | E22: 1 | F22: 1 | G22: 0 | H22: 0 | I22: 0 | J22: 0 | K22: 0 | L22: 0 | M22: 0 | N22: 2 | P22: 09:30:00 | Q22: 2
A23: 09:45:00 | B23: 0 | C23: 0 | D23: 0 | E23: 0 | F23: 0 | G23: 0 | H23: 0 | I23: 0 | J23: 0 | K23: 0 | L23: 0 | M23: 0 | N23: 0 | P23: 09:45:00 | Q23: 0
A24: 10:00:00 | B24: 0 | C24: 0 | D24: 2 | E24: 0 | F24: 0 | G24: 0 | H24: 0 | I24: 2 | J24: 0 | K24: 0 | L24: 0 | M24: 0 | N24: 4 | P24: 10:00:00 | Q24: 4
A25: 10:15:00 | B25: 0 | C25: 0 | D25: 0 | E25: 0 | F25: 1 | G25: 0 | H25: 0 | I25: 0 | J25: 0 | K25: 0 | L25: 0 | M25: 0 | N25: 1 | P25: 10:15:00 | Q25: 1
A26: 10:30:00 | B26: 0 | C26: 0 | D26: 0 | E26: 1 | F26: 0 | G26: 0 | H26: 0 | I26: 0 | J26: 0 | K26: 0 | L26: 0 | M26: 0 | N26: 1 | P26: 10:30:00 | Q26: 1
A27: 10:45:00 | B27: 0 | C27: 0 | D27: 1 | E27: 0 | F27: 0 | G27: 0 | H27: 0 | I27: 0 | J27: 0 | K27: 0 | L27: 0 | M27: 0 | N27: 1 | P27: 10:45:00 | Q27: 1
A28: 11:00:00 | B28: 0 | C28: 0 | D28: 0 | E28: 0 | F28: 1 | G28: 0 | H28: 0 | I28: 0 | J28: 0 | K28: 1 | L28: 0 | M28: 0 | N28: 2 | P28: 11:00:00 | Q28: 2
A29: 11:15:00 | B29: 0 | C29: 0 | D29: 0 | E29: 2 | F29: 0 | G29: 0 | H29: 0 | I29: 0 | J29: 0 | K29: 0 | L29: 0 | M29: 0 | N29: 2 | P29: 11:15:00 | Q29: 2
A30: 11:30:00 | B30: 0 | C30: 0 | D30: 0 | E30: 0 | F30: 0 | G30: 0 | H30: 2 | I30: 0 | J30: 0 | K30: 0 | L30: 0 | M30: 0 | N30: 2 | P30: 11:30:00 | Q30: 2
A31: 11:45:00 | B31: 0 | C31: 0 | D31: 0 | E31: 0 | F31: 0 | G31: 1 | H31: 1 | I31: 1 | J31: 0 | K31: 0 | L31: 0 | M31: 0 | N31: 3 | P31: 11:45:00 | Q31: 3
A32: 12:00:00 | B32: 0 | C32: 0 | D32: 0 | E32: 0 | F32: 0 | G32: 1 | H32: 0 | I32: 0 | J32: 0 | K32: 0 | L32: 0 | M32: 0 | N32: 1 | P32: 12:00:00 | Q32: 1
A33: 12:15:00 | B33: 0 | C33: 0 | D33: 1 | E33: 1 | F33: 1 | G33: 1 | H33: 0 | I33: 1 | J33: 0 | K33: 1 | L33: 0 | M33: 0 | N33: 6 | P33: 12:15:00 | Q33: 6
A34: 12:30:00 | B34: 0 | C34: 0 | D34: 0 | E34: 1 | F34: 2 | G34: 0 | H34: 0 | I34: 0 | J34: 1 | K34: 0 | L34: 0 | M34: 0 | N34: 4 | P34: 12:30:00 | Q34: 4
A35: 12:45:00 | B35: 0 | C35: 0 | D35: 0 | E35: 0 | F35: 0 | G35: 0 | H35: 0 | I35: 0 | J35: 0 | K35: 0 | L35: 0 | M35: 0 | N35: 0 | P35: 12:45:00 | Q35: 0
A36: 01:00:00 | B36: 0 | C36: 0 | D36: 0 | E36: 0 | F36: 0 | G36: 0 | H36: 0 | I36: 0 | J36: 0 | K36: 1 | L36: 0 | M36: 0 | N36: 1 | P36: 01:00:00 | Q36: 1
A37: 01:15:00 | B37: 0 | C37: 0 | D37: 0 | E37: 0 | F37: 2 | G37: 0 | H37: 1 | I37: 0 | J37: 0 | K37: 0 | L37: 0 | M37: 0 | N37: 3 | P37: 01:15:00 | Q37: 3
A38: 01:30:00 | B38: 0 | C38: 0 | D38: 0 | E38: 0 | F38: 0 | G38: 0 | H38: 1 | I38: 0 | J38: 0 | K38: 0 | L38: 0 | M38: 0 | N38: 1 | P38: 01:30:00 | Q38: 1
A39: 01:45:00 | B39: 0 | C39: 0 | D39: 0 | E39: 1 | F39: 0 | G39: 0 | H39: 0 | I39: 0 | J39: 0 | K39: 0 | L39: 0 | M39: 0 | N39: 1 | P39: 01:45:00 | Q39: 1
A40: 02:00:00 | B40: 0 | C40: 0 | D40: 1 | E40: 1 | F40: 0 | G40: 0 | H40: 0 | I40: 0 | J40: 0 | K40: 1 | L40: 0 | M40: 0 | N40: 3 | P40: 02:00:00 | Q40: 3
A41: 02:15:00 | B41: 0 | C41: 0 | D41: 0 | E41: 0 | F41: 0 | G41: 0 | H41: 0 | I41: 0 | J41: 0 | K41: 0 | L41: 0 | M41: 0 | N41: 0 | P41: 02:15:00 | Q41: 0
A42: 02:30:00 | B42: 0 | C42: 0 | D42: 0 | E42: 0 | F42: 0 | G42: 1 | H42: 0 | I42: 0 | J42: 0 | K42: 0 | L42: 0 | M42: 0 | N42: 1 | P42: 02:30:00 | Q42: 1
A43: 02:45:00 | B43: 0 | C43: 0 | D43: 0 | E43: 1 | F43: 1 | G43: 0 | H43: 0 | I43: 1 | J43: 0 | K43: 0 | L43: 0 | M43: 0 | N43: 3 | P43: 02:45:00 | Q43: 3
A44: 03:00:00 | B44: 0 | C44: 0 | D44: 0 | E44: 2 | F44: 0 | G44: 1 | H44: 0 | I44: 0 | J44: 0 | K44: 0 | L44: 0 | M44: 0 | N44: 3 | P44: 03:00:00 | Q44: 3
A45: 03:15:00 | B45: 0 | C45: 0 | D45: 1 | E45: 1 | F45: 0 | G45: 0 | H45: 0 | I45: 1 | J45: 0 | K45: 0 | L45: 0 | M45: 0 | N45: 3 | P45: 03:15:00 | Q45: 3
A46: 03:30:00 | B46: 0 | C46: 0 | D46: 1 | E46: 0 | F46: 0 | G46: 0 | H46: 0 | I46: 0 | J46: 0 | K46: 0 | L46: 0 | M46: 0 | N46: 1 | P46: 03:30:00 | Q46: 1
A47: 03:45:00 | B47: 0 | C47: 0 | D47: 1 | E47: 0 | F47: 0 | G47: 0 | H47: 1 | I47: 0 | J47: 0 | K47: 0 | L47: 0 | M47: 0 | N47: 2 | P47: 03:45:00 | Q47: 2
A48: 04:00:00 | B48: 0 | C48: 0 | D48: 1 | E48: 0 | F48: 0 | G48: 2 | H48: 0 | I48: 0 | J48: 0 | K48: 1 | L48: 0 | M48: 0 | N48: 4 | P48: 04:00:00 | Q48: 4
A49: 04:15:00 | B49: 0 | C49: 0 | D49: 0 | E49: 0 | F49: 0 | G49: 0 | H49: 0 | I49: 0 | J49: 0 | K49: 0 | L49: 0 | M49: 0 | N49: 0 | P49: 04:15:00 | Q49: 0
A50: 04:30:00 | B50: 0 | C50: 0 | D50: 0 | E50: 0 | F50: 0 | G50: 0 | H50: 0 | I50: 0 | J50: 0 | K50: 0 | L50: 0 | M50: 0 | N50: 0 | P50: 04:30:00 | Q50: 0
A51: 04:45:00 | B51: 0 | C51: 0 | D51: 0 | E51: 0 | F51: 0 | G51: 0 | H51: 0 | I51: 0 | J51: 0 | K51: 0 | L51: 0 | M51: 0 | N51: =SUM(B51:M51) -> 0 | P51: 04:45:00 | Q51: 0
A53: Table 3B
B54: ='School Set Up'!I17 -> 2011
A55: Location | B55: ='School Set Up'!C17 -> August
A56: 07:00:00 | B56: 0
A57: 07:15:00 | B57: 0
A58: 07:30:00 | B58: 0
A59: 07:45:00 | B59: 0
A60: 08:00:00 | B60: 0
A61: 08:15:00 | B61: 0
A62: 08:30:00 | B62: 0
A63: 08:45:00 | B63: 0
A64: 09:00:00 | B64: 0
A65: 09:15:00 | B65: 0
A66: 09:30:00 | B66: 0
A67: 09:45:00 | B67: 0
A68: 10:00:00 | B68: 0
A69: 10:15:00 | B69: 0
A70: 10:30:00 | B70: 0
A71: 10:45:00 | B71: 0
A72: 11:00:00 | B72: 0
A73: 11:15:00 | B73: 0
A74: 11:30:00 | B74: 0
A75: 11:45:00 | B75: 0
A76: 12:00:00 | B76: 0
A77: 12:15:00 | B77: 0
A78: 12:30:00 | B78: 0
A79: 12:45:00 | B79: 0
A80: 01:00:00 | B80: 0
A81: 01:15:00 | B81: 0
A82: 01:30:00 | B82: 0
A83: 01:45:00 | B83: 0
A84: 02:00:00 | B84: 0
A85: 02:15:00 | B85: 0
A86: 02:30:00 | B86: 0
A87: 02:45:00 | B87: 0
A88: 03:00:00 | B88: 0
A89: 03:15:00 | B89: 0
A90: 03:30:00 | B90: 0
A91: 03:45:00 | B91: 0
A92: 04:00:00 | B92: 0
A93: 04:15:00 | B93: 0
A94: 04:30:00 | B94: 0
A95: 04:45:00 | B95: 0
A98: Table 3C
B99: Month? | C99: YEAR
A100: 07:00:00 | B100: =B56 -> 0 | C100: =N12 -> 2
A101: 07:15:00 | B101: 0 | C101: 1
A102: 07:30:00 | B102: 0 | C102: 0
A103: 07:45:00 | B103: 0 | C103: 2
A104: 08:00:00 | B104: 0 | C104: 3
A105: 08:15:00 | B105: 0 | C105: 0
A106: 08:30:00 | B106: 0 | C106: 0
A107: 08:45:00 | B107: 0 | C107: 0
A108: 09:00:00 | B108: 0 | C108: 0
A109: 09:15:00 | B109: 0 | C109: 2
A110: 09:30:00 | B110: 0 | C110: 2
A111: 09:45:00 | B111: 0 | C111: 0
A112: 10:00:00 | B112: 0 | C112: 4
A113: 10:15:00 | B113: 0 | C113: 1
A114: 10:30:00 | B114: 0 | C114: 1
A115: 10:45:00 | B115: 0 | C115: 1
A116: 11:00:00 | B116: 0 | C116: 2
A117: 11:15:00 | B117: 0 | C117: 2
A118: 11:30:00 | B118: 0 | C118: 2
A119: 11:45:00 | B119: 0 | C119: 3
A120: 12:00:00 | B120: 0 | C120: 1
A121: 12:15:00 | B121: 0 | C121: 6
A122: 12:30:00 | B122: 0 | C122: 4
A123: 12:45:00 | B123: 0 | C123: 0
A124: 01:00:00 | B124: 0 | C124: 1
A125: 01:15:00 | B125: 0 | C125: 3
A126: 01:30:00 | B126: 0 | C126: 1
A127: 01:45:00 | B127: 0 | C127: 1
A128: 02:00:00 | B128: 0 | C128: 3
A129: 02:15:00 | B129: 0 | C129: 0
A130: 02:30:00 | B130: 0 | C130: 1
A131: 02:45:00 | B131: 0 | C131: 3
A132: 03:00:00 | B132: 0 | C132: 3
A133: 03:15:00 | B133: 0 | C133: 3
A134: 03:30:00 | B134: 0 | C134: 1
A135: 03:45:00 | B135: 0 | C135: 2
A136: 04:00:00 | B136: 0 | C136: 4
A137: 04:15:00 | B137: 0 | C137: 0
A138: 04:30:00 | B138: 0 | C138: 0
A139: 04:45:00 | B139: 0 | C139: 0

Sheet K-6 By Students
A1: Referrals By Students | C1: BASED on 2009-2010 SWIS Statistics
A2: 1. Make certain that you have entered student enrollement on the "School Set Up" Worksheet for all three years.
A3: 2. Enter the total number of students for each pyramid category. You can only enter data in yellow squares.
A4: a) Enter the numbver of students with 1 referral in the yellow box of the D column for the appropriate year.
A5: b) Enter the number of students with 2-5 referrals in the yellow box of the E column for the appropriate year.
A6: c) Enter the number of students with 6 or more referrals in the yellow box of the F column for the appropriate year.
A8: 2. Print
A9: Figuring your percentage!
B10: Total Student Population in Aqua box below | C10: Total Students with 0 Office Disciplinary Referrals into box below | D10: Total Students with 1 Office Disciplinary Referrals into box below | E10: Total Students with 2-5 Office Disciplinary Referrals into box below | F10: Total Students with 6+ Office Disciplinary Referrals into box below.
A11: 2011/2012 | B11: ='School Set Up'!F21 -> 283 | C11: =(B11)-SUM(D11:F11) -> 283
A12: Percentages >>>>>>>>>>> | C12: =C11/B11 -> 1 | D12: =SUM(D11/B11) -> 0 | E12: =SUM(E11/B11) -> 0 | F12: =SUM(F11/B11) -> 0
A13: 2010/2011 | B13: ='School Set Up'!F23 -> 306 | C13: =(B13)-SUM(D13:F13) -> 306
A14: Percentages >>>>>>>>>>> | C14: =C13/B13 -> 1 | D14: =SUM(D13/B13) -> 0 | E14: =SUM(E13/B13) -> 0 | F14: =SUM(F13/B13) -> 0
A15: 2009/2010 | B15: ='School Set Up'!F25 -> 297 | C15: =(B15)-SUM(D15:F15) -> 297
A16: Percentages >>>>>>>>>>> | C16: =C15/B15 -> 1 | D16: =SUM(D15/B15) -> 0 | E16: =SUM(E15/B15) -> 0 | F16: =SUM(F15/B15) -> 0
A18: Use this generator if you are a K-6 Building ONLY! | H18: ='School Set Up'!E15 -> Dent-Phelps R-3
E19: ='School Set Up'!E15:I15 -> Dent-Phelps R-3
B20: National Grades K-6 for Year Average | C20: 2009/2010 | D20: 2010/2011 | E20: 2011/2012
A21: 0-1 Referrals | B21: 90.95 | C21: =D16+C16 -> 1 | D21: =D14+C14 -> 1 | E21: =D12+C12 -> 1
A22: 2-5 Referrals | B22: 6.7 | C22: =E16 -> 0 | D22: =E14 -> 0 | E22: =E12 -> 0
A23: 6+ Referrals | B23: 2.35 | C23: =F16 -> 0 | D23: =F14 -> 0 | E23: =F12 -> 0

Sheet 6-9 By Students
A1: Referrals By Students | C1: BASED on 2009-2010 SWIS Statistics
A2: 1. Make certain that you have entered student enrollement on the "School Set Up" Worksheet for all three years.
A3: 2. Enter the total number of students for each pyramid category. You can only enter data in yellow squares.
A4: a) Enter the numbver of students with 1 referral in the yellow box of the D column for the appropriate year.
A5: b) Enter the number of students with 2-5 referrals in the yellow box of the E column for the appropriate year.
A6: c) Enter the number of students with 6 or more referrals in the yellow box of the F column for the appropriate year.
A8: 2. Print
A9: Figuring your percentage!
B10: Total Student Population in Aqua box below | C10: Total Students with 0 Office Disciplinary Referrals into box below | D10: Total Students with 1 Office Disciplinary Referrals into box below | E10: Total Students with 2-5 Office Disciplinary Referrals into box below | F10: Total Students with 6+ Office Disciplinary Referrals into box below.
A11: 2011/2012 | B11: ='School Set Up'!F21 -> 283 | C11: =(B11)-SUM(D11:F11) -> 200.2 | D11: 82.8
A12: Percentages >>>>>>>>>>> | C12: =C11/B11 -> 0.7074204947 | D12: =SUM(D11/B11) -> 0.2925795053 | E12: =SUM(E11/B11) -> 0 | F12: =SUM(F11/B11) -> 0
A13: 2010/2011 | B13: ='School Set Up'!F23 -> 306 | C13: =(B13)-SUM(D13:F13) -> 306
A14: Percentages >>>>>>>>>>> | C14: =C13/B13 -> 1 | D14: =SUM(D13/B13) -> 0 | E14: =SUM(E13/B13) -> 0 | F14: =SUM(F13/B13) -> 0
A15: 2009/2010 | B15: ='School Set Up'!F25 -> 297 | C15: =(B15)-SUM(D15:F15) -> 297
A16: Percentages >>>>>>>>>>> | C16: =C15/B15 -> 1 | D16: =SUM(D15/B15) -> 0 | E16: =SUM(E15/B15) -> 0 | F16: =SUM(F15/B15) -> 0
A18: Use this generator if you are a 6-9 Building ONLY! | I18: ='School Set Up'!E15 -> Dent-Phelps R-3
E19: ='School Set Up'!E15:I15 -> Dent-Phelps R-3
B20: National Grades 6-9 for Year Average | C20: 2009/2010 | D20: 2010/2011 | E20: 2011/2012
A21: 0-1 Referrals | B21: 82.8 | C21: =D16+C16 -> 1 | D21: =D14+C14 -> 1 | E21: =D12+C12 -> 1
A22: 2-5 Referrals | B22: 11.68 | C22: =E16 -> 0 | D22: =E14 -> 0 | E22: =E12 -> 0
A23: 6+ Referrals | B23: 5.52 | C23: =F16 -> 0 | D23: =F14 -> 0 | E23: =F12 -> 0

Sheet 9-12 By Students
A1: Referrals By Students | C1: BASED on 2009-2010 SWIS Statistics
A2: 1. Make certain that you have entered student enrollement on the "School Set Up" Worksheet for all three years.
A3: 2. Enter the total number of students for each pyramid category. You can only enter data in yellow squares.
A4: a) Enter the numbver of students with 1 referral in the yellow box of the D column for the appropriate year.
A5: b) Enter the number of students with 2-5 referrals in the yellow box of the E column for the appropriate year.
A6: c) Enter the number of students with 6 or more referrals in the yellow box of the F column for the appropriate year.
A8: 2. Print
A9: Figuring your percentage!
B10: Total Student Population in Aqua box below | C10: Total Students with 0 Office Disciplinary Referrals into box below | D10: Total Students with 1 Office Disciplinary Referrals into box below | E10: Total Students with 2-5 Office Disciplinary Referrals into box below | F10: Total Students with 6+ Office Disciplinary Referrals into box below.
A11: 2011/2012 | B11: ='School Set Up'!F21 -> 283 | C11: =(B11)-SUM(D11:F11) -> 283
A12: Percentages >>>>>>>>>>> | C12: =C11/B11 -> 1 | D12: =SUM(D11/B11) -> 0 | E12: =SUM(E11/B11) -> 0 | F12: =SUM(F11/B11) -> 0
A13: 2010/2011 | B13: ='School Set Up'!F23 -> 306 | C13: =(B13)-SUM(D13:F13) -> 306
A14: Percentages >>>>>>>>>>> | C14: =C13/B13 -> 1 | D14: =SUM(D13/B13) -> 0 | E14: =SUM(E13/B13) -> 0 | F14: =SUM(F13/B13) -> 0
A15: 2009/2010 | B15: ='School Set Up'!F25 -> 297 | C15: =(B15)-SUM(D15:F15) -> 297
A16: Percentages >>>>>>>>>>> | C16: =C15/B15 -> 1 | D16: =SUM(D15/B15) -> 0 | E16: =SUM(E15/B15) -> 0 | F16: =SUM(F15/B15) -> 0
A18: Use this generator if you are a 9-12 Building ONLY! | I18: ='School Set Up'!E15 -> Dent-Phelps R-3
E19: ='School Set Up'!E15:I15 -> Dent-Phelps R-3
B20: National Grades 9-12 for Year Average | C20: 2009/2010 | D20: 2010/2011 | E20: 2011/2012
A21: 0-1 Referrals | B21: 77.8 | C21: =D16+C16 -> 1 | D21: =D14+C14 -> 1 | E21: =D12+C12 -> 1
A22: 2-5 Referrals | B22: 14.67 | C22: =E16 -> 0 | D22: =E14 -> 0 | E22: =E12 -> 0
A23: 6+ Referrals | B23: 7.53 | C23: =F16 -> 0 | D23: =F14 -> 0 | E23: =F12 -> 0

Sheet K8 or K12 By Students
A1: Referrals By Students | C1: BASED on 2009-2010 SWIS Statistics
A2: 1. Make certain that you have entered student enrollement on the "School Set Up" Worksheet for all three years.
A3: 2. Enter the total number of students for each pyramid category. You can only enter data in yellow squares.
A4: a) Enter the numbver of students with 1 referral in the yellow box of the D column for the appropriate year.
A5: b) Enter the number of students with 2-5 referrals in the yellow box of the E column for the appropriate year.
A6: c) Enter the number of students with 6 or more referrals in the yellow box of the F column for the appropriate year.
A8: 2. Print
A9: Figuring your percentage!
B10: Total Student Population in Aqua box below | C10: Total Students with 0 Office Disciplinary Referrals into box below | D10: Total Students with 1 Office Disciplinary Referrals into box below | E10: Total Students with 2-5 Office Disciplinary Referrals into box below | F10: Total Students with 6+ Office Disciplinary Referrals into box below.
A11: 2011/2012 | B11: ='School Set Up'!F21 -> 283 | C11: =(B11)-SUM(D11:F11) -> 283
A12: Percentages >>>>>>>>>>> | C12: =C11/B11 -> 1 | D12: =SUM(D11/B11) -> 0 | E12: =SUM(E11/B11) -> 0 | F12: =SUM(F11/B11) -> 0
A13: 2010/2011 | B13: ='School Set Up'!F23 -> 306 | C13: =(B13)-SUM(D13:F13) -> 306
A14: Percentages >>>>>>>>>>> | C14: =C13/B13 -> 1 | D14: =SUM(D13/B13) -> 0 | E14: =SUM(E13/B13) -> 0 | F14: =SUM(F13/B13) -> 0
A15: 2009/2010 | B15: ='School Set Up'!F25 -> 297 | C15: =(B15)-SUM(D15:F15) -> 297
A16: Percentages >>>>>>>>>>> | C16: =C15/B15 -> 1 | D16: =SUM(D15/B15) -> 0 | E16: =SUM(E15/B15) -> 0 | F16: =SUM(F15/B15) -> 0
A18: Use this generator if you are a K-8 or K-12 Building ONLY! | I18: ='School Set Up'!E15 -> Dent-Phelps R-3
E19: ='School Set Up'!E15:I15 -> Dent-Phelps R-3
B20: National Grades K-8 or K-12 for Year Average | C20: 2009/2010 | D20: 2010/2011 | E20: 2011/2012
A21: 0-1 Referrals | B21: 86.24 | C21: =D16+C16 -> 1 | D21: =D14+C14 -> 1 | E21: =D12+C12 -> 1
A22: 2-5 Referrals | B22: 9.59 | C22: =E16 -> 0 | D22: =E14 -> 0 | E22: =E12 -> 0
A23: 6+ Referrals | B23: 4.17 | C23: =F16 -> 0 | D23: =F14 -> 0 | E23: =F12 -> 0

Sheet By Students No Comparison
A1: Referrals By Students
A2: 1. Make certain that you have entered student enrollement on the "School Set Up" Worksheet for all three years.
A3: 2. Enter the total number of students for each pyramid category. You can only enter data in yellow squares.
A4: a) Enter the numbver of students with 1 referral in the yellow box of the D column for the appropriate year.
A5: b) Enter the number of students with 2-5 referrals in the yellow box of the E column for the appropriate year.
A6: c) Enter the number of students with 6 or more referrals in the yellow box of the F column for the appropriate year.
A8: 2. Print
A9: Figuring your percentage!
B10: Total Student Population in Aqua box below | C10: Total Students with 0 Office Disciplinary Referrals into box below | D10: Total Students with 1 Office Disciplinary Referrals into box below | E10: Total Students with 2-5 Office Disciplinary Referrals into box below | F10: Total Students with 6+ Office Disciplinary Referrals into box below.
A11: 2011/2012 | B11: ='School Set Up'!F21 -> 283 | C11: =(B11)-SUM(D11:F11) -> 123 | D11: 100 | E11: 50 | F11: 10
A12: Percentages >>>>>>>>>>> | C12: =C11/B11 -> 0.4346289753 | D12: =SUM(D11/B11) -> 0.3533568905 | E12: =SUM(E11/B11) -> 0.1766784452 | F12: =SUM(F11/B11) -> 0.03533568905
A13: 2010/2011 | B13: ='School Set Up'!F23 -> 306 | C13: =(B13)-SUM(D13:F13) -> 306
A14: Percentages >>>>>>>>>>> | C14: =C13/B13 -> 1 | D14: =SUM(D13/B13) -> 0 | E14: =SUM(E13/B13) -> 0 | F14: =SUM(F13/B13) -> 0
A15: 2009/2010 | B15: ='School Set Up'!F25 -> 297 | C15: =(B15)-SUM(D15:F15) -> 297
A16: Percentages >>>>>>>>>>> | C16: =C15/B15 -> 1 | D16: =SUM(D15/B15) -> 0 | E16: =SUM(E15/B15) -> 0 | F16: =SUM(F15/B15) -> 0
H18: ='School Set Up'!E15 -> Dent-Phelps R-3
D19: ='School Set Up'!E15 -> Dent-Phelps R-3
B20: 2009/2010 | C20: 2010/2011 | D20: 2011/2012
A21: 0-1 Referrals | B21: =C16+B16 -> 1 | C21: =C14+B14 -> 1 | D21: =C12+B12 -> 0.4346289753
A22: 2-5 Referrals | B22: =D16 -> 0 | C22: =D14 -> 0 | D22: =D12 -> 0.3533568905
A23: 6+ Referrals | B23: =E16 -> 0 | C23: =E14 -> 0 | D23: =F12 -> 0.03533568905

Sheet perday Generator
A2: Based on 2010-2011 SWIS Statistics | C2: SCHOOL: | D2: ='School Set Up'!$E$15 -> Dent-Phelps R-3
A3: Entering your total number of students in the yellow box will allow you to generate a PER DAY PER MONTH MEDIAN <50th percentile> for MAJOR Office Discipline Referrals.
A5: Total student population on official count day for current school year | D5: ='School Set Up'!F21 -> 283
A6: Your student population divided by 100 | D6: =SUM(D5/100) -> 2.83
A8: Median for Elementary Schools is .21 referrals per 100 students
A9: Elementary Low End of Range (25th percentile) | C9: 0.11 | D9: =SUM($D$6*C9) -> 0.3113
A10: Elementary Median | C10: 0.21 | D10: =SUM($D$6*C10) -> 0.5943
A11: Elemenary High End of Range (75th Percentile) | C11: 0.39 | D11: 1.1037
A14: Median for Middle Schools is .46 referrals (SD = 1.11) per 100 students
A15: Middle School Low End of Range (25th Percentile) | C15: 0.25 | D15: =SUM($D$6*C15) -> 0.7075
A16: Middle School Median | C16: 0.46 | D16: 1.3018
A17: Middle School High End of Range (75th Percentile) | C17: 0.79 | D17: 2.2357
A20: Median for High Schools is .62 referrals (SD = 2.60) per 100 students
A21: High School Low End of Range (25th Percentile) | C21: 0.34 | D21: =SUM($D$6*C21) -> 0.9622
A22: High School Median | C22: 0.62 | D22: 1.7546
A23: High School High End of Range (75th Percentile) | C23: 1.07 | D23: 3.0281
A26: Median for K-8 is .32 referrals (SD = 2.60) per 100 students
A27: K-8 or K-12 Low End of Range (25th Percentile) | C27: 0.18 | D27: =SUM($D$6*C27) -> 0.5094
A28: K-8 or K-12 Median | C28: 0.32 | D28: 0.9056
A29: K-8 or K-12 High End of Range (75th Percentile) | C29: 0.65 | D29: 1.8395
A32: Median for K-12 is .42 referrals (SD = 2.60) per 100 students
A33: K-8 or K-12 Low End of Range (25th Percentile) | C33: 0.18 | D33: =SUM($D$6*C33) -> 0.5094
A34: K-8 or K-12 Median | C34: 0.37 | D34: 1.0471
A35: K-8 or K-12 High End of Range (Percentile) | C35: 0.71 | D35: 2.0093

Sheet Print Monthly
G1: Per Month
E4: ='School Set Up'!E15:I15 -> Dent-Phelps R-3
F7: ='School Set Up'!C17 -> August | I7: ='School Set Up'!I17 -> 2011

Sheet Print Cumulative
G1: Cumulative Data
E3: ='School Set Up'!E15 -> Dent-Phelps R-3
F6: ='School Set Up'!C17 -> August | I6: ='School Set Up'!I17 -> 2011
